[Event "Benidorm Open-A 2022"]
[Site "Benidorm"]
[Date "2022.12.06"]
[Round "4.32"]
[White "Troffiguer, Olivier"]
[Black "Unciti Juan, Javier"]
[Result "1/2-1/2"]
[ECO "A05"]
[WhiteElo "2007"]
[BlackElo "1999"]
[Annotator "TA"]
[PlyCount "83"]
[EventDate "2022.12.03"]
[EventType "swiss"]
[EventCountry "ESP"]
[SourceTitle "playchess.com"]
[Source "ChessBase"]
[SourceQuality "1"]
[TimeControl "5400+30"]

{[%evp 15,83,3,7,14,9,0,0,0,0,0,0,-18,11,11,19,17,17,13,15,18,20,18,25,7,31,-13,-10,-12,-10,-10,-9,-10,-11,-18,-7,-16,-10,-10,-10,-10,-7,-29,122,112,347,253,239,20,128,136,107,59,31,10,16,9,18,5,166,166,183,206,193,193,240,227,233,-9,214,192]} 1. Nf3 Nf6 2. e3 g6 3. b3 Bg7 4. Bb2 O-O 5. c4 d5 6. cxd5 Nxd5 7. Bxg7 Kxg7 8. Be2 c5 9. Qc1 {A30: Symmetrical English: Double Fianchetto and Hedgehog.} b6 10. Qb2+ f6 11. d4 {Inhibits e5. The position is equal.} cxd4 12. Nxd4 e5 {[#]} 13. Nc2 $146 ({Predecessor:} 13. Nf3 Ba6 14. O-O Bxe2 {½-½ (14) Staller,P (2310)-Legde,G (2257) Germany 2000}) 13... Nd7 14. O-O Bb7 15. Rd1 {Strongly threatening Bg4.} Qe7 16. Bc4 Nc7 17. Qa3 Nc5 18. Nc3 {Prevents b5.} Rfe8 19. Rac1 a6 20. Nd5 Nxd5 21. Bxd5 Rad8 22. Bxb7 Qxb7 23. Ne1 a5 24. Qb2 Rd5 25. b4 axb4 26. Rxd5 Qxd5 27. Qxb4 Re6 28. a4 Qa8 $2 (28... Qd7 $11) 29. a5 $1 $16 Qe4 $2 (29... Na6 $16 {keeps fighting.} 30. Qb3 Rc6 31. Rxc6 Qxc6) 30. Qxe4 Nxe4 $18 {[%mdl 4096] Endgame KRN-KRN} 31. a6 (31. Rc7+ $18 Kh6 32. a6) 31... Re7 {[#]} (31... Nc5 $1 $11) 32. Nd3 $1 $16 {aiming for Nb4.} Ra7 33. Nb4 (33. f3 $16 Nc5 34. Nxc5 bxc5 35. Ra1 (35. Rxc5 Rxa6 36. Rc7+ Kh6 $11)) 33... Nc5 $14 34. Kf1 Kf7 (34... Nxa6 $2 35. Ra1 $18) 35. Ke2 Ke6 36. Rd1 Ne4 $2 {[#]} (36... f5 $11) 37. Rd8 $1 $18 Nc5 38. Rb8 Nd7 39. Rc8 f5 (39... e4 $142 40. Rc6+ Ke7) 40. Rc6+ Ke7 41. Nd3 $2 (41. Kd3 $18) 41... b5 {Inhibits Kc4.} (41... Rxa6 $11 {and Black stays safe.} 42. Nb4 Ra5) 42. f3 {Weighted Error Value: White=0.28 (precise) /Black=0.39} 1/2-1/2

[Event "Benidorm Open-A 2022"]
[Site "Benidorm"]
[Date "2022.12.06"]
[Round "5.1"]
[White "Saydaliev, Saidakbar"]
[Black "Sarkar, Justin"]
[Result "1/2-1/2"]
[ECO "B44"]
[WhiteElo "2376"]
[BlackElo "2350"]
[Annotator "TA"]
[PlyCount "60"]
[EventDate "2022.12.03"]
[EventType "swiss"]
[EventCountry "ESP"]
[SourceTitle "playchess.com"]
[Source "ChessBase"]
[SourceQuality "1"]
[TimeControl "5400+30"]

{[%evp 9,60,16,44,0,0,-10,0,-7,18,10,18,0,12,-20,-4,-29,-31,-24,-25,-33,-37,-28,0,0,0,-17,-11,-37,-47,-31,-21,-31,-22,-42,-60,-60,-64,-77,-27,-27,-8,-6,-7,-8,-9,-16,-18,-19,-4,-24,-8,-8,0]} 1. e4 c5 2. Nf3 e6 3. d4 cxd4 4. Nxd4 Nc6 5. Bf4 Nf6 {[%cal Bg8f6,Bf6d7,Bd7c5,Bc5d3][%mdl 32]} 6. Nxc6 {B44: Sicilian: Taimanov: 5 Nb5.} bxc6 7. Nd2 d5 8. Bd3 {[#]} Be7 $146 (8... g6 $5 {[%cal Rf6h5]}) ({Predecessor:} 8... g6 9. c3 Bg7 10. O-O O-O 11. Re1 Nh5 12. Be3 e5 13. Bc5 Re8 14. g3 Nf6 {0-1 (39) Sanal,V (2561)-Indjic,A (2629) Vrnjacka Banja 2021}) 9. O-O O-O 10. Qe2 Nd7 11. h3 a5 12. Rab1 a4 13. b4 axb3 14. axb3 Nc5 15. Ra1 Nxd3 16. Qxd3 Bb7 17. Rxa8 Qxa8 18. Qg3 Rd8 $1 19. Be5 {[%csl Ge5][%cal Rg3g7] [#]} f6 20. Ra1 Qc8 21. Bb2 c5 22. exd5 exd5 23. Qg4 Qxg4 ({Black should play} 23... Qc6 $17) 24. hxg4 $11 Ra8 25. Rxa8+ Bxa8 {KBB-KBN} 26. f3 Kf7 27. Kf2 Ke6 28. Nf1 Bd6 29. Ng3 Bxg3+ 30. Kxg3 Bb7 {Weighted Error Value: White=0.11 (very precise) /Black=0.09 (flawless)} 1/2-1/2

[Event "Benidorm Open-A 2022"]
[Site "Benidorm"]
[Date "2022.12.06"]
[Round "5.2"]
[White "Ilamparthi A R"]
[Black "Fernandez Guillen, Ernesto J."]
[Result "1/2-1/2"]
[ECO "B50"]
[WhiteElo "2336"]
[BlackElo "2462"]
[Annotator "TA"]
[PlyCount "69"]
[EventDate "2022.12.03"]
[EventType "swiss"]
[EventCountry "ESP"]
[SourceTitle "playchess.com"]
[Source "ChessBase"]
[SourceQuality "1"]
[TimeControl "5400+30"]

{[%evp 9,69,8,41,38,32,39,35,23,47,7,104,105,119,99,102,90,129,83,77,53,85,50,131,116,124,113,109,82,117,121,126,118,118,109,115,61,64,37,51,-33,-44,-118,-106,-106,-118,-180,-178,-158,-181,-143,939,691,2539,1181,1939,941,1161,17,1093,-106,-66,-83]} 1. e4 c5 2. Nf3 d6 3. d3 Nc6 4. g3 Nf6 5. Bg2 h5 {[#]} 6. Nbd2 $146 {B30: Sicilian: 2...Nc6 3 Bb5, lines without ...g6.} ({Predecessor:} 6. O-O Bd7 7. a3 Qc8 8. Ne1 Bh3 9. f4 h4 10. f5 Bxg2 11. Nxg2 hxg3 12. hxg3 {1-0 (42) Duran,R (1968)-Prieto Gomez,C (1725) Cali 2014}) 6... e5 7. c3 Be7 8. a3 {White is slightly better.} Nh7 9. d4 g5 (9... exd4 $11 {keeps the balance.} 10. cxd4 cxd4) 10. d5 $16 Nb8 11. h4 g4 12. Nh2 Na6 13. b4 (13. O-O $142) 13... f5 14. exf5 Bxf5 15. Ne4 Rc8 (15... Nf6 $14 16. Nxf6+ Bxf6) 16. Nf1 {White is more active.} cxb4 17. cxb4 Bg6 18. Ne3 O-O {[#]} 19. Nxg4 $1 {[%cal Oe1g1][%mdl 512]} Rc4 20. Qe2 Qc8 21. Nh6+ Kg7 22. O-O (22. Bd2 $16) 22... Rc2 $1 $14 23. Qe3 {Chess con chili.} Qc4 24. Re1 (24. Bd2 $14 Qd4 25. Qxd4 exd4 26. Rad1) 24... Nc7 $1 $15 25. Ng4 hxg4 $17 26. Qh6+ Kf7 {Threatens to win with ...Nb5.} 27. h5 (27. Bb2 $17 {is a better defense.}) 27... Bf5 $19 {And now ...Nb5 would win.} 28. Nxd6+ Bxd6 29. Qxd6 Ke8 $2 {[%mdl 8192]} ({Resist} 29... Qd4 30. Be3 (30. Qxe5 $2 {leads to mate.} Qxf2+ 31. Kh2 Qxg2#) 30... Qc3 31. Bc5 $18 (31. Bxa7 Nb5 $16)) (29... Re8 $17 30. Be3 Nf6) 30. Be3 {[#] Bc5 is the strong threat.} Nf6 31. Bg5 (31. Bc5 $142 Qxc5 32. Rxe5+ (32. Qxc5 Rxc5 33. bxc5 e4 $16) 32... Kf7 33. bxc5) 31... Qa6 32. Qxa6 (32. Qxe5+ $142 Be6 33. Bxf6) 32... Nxa6 33. d6 $2 (33. Rxe5+ $18 Kd7 34. Rxf5) 33... b6 $2 {[%mdl 8192]} (33... e4 $11) 34. Rac1 $2 ({Only move:} 34. Rxe5+ $18 Kd7 35. Rxf5) 34... Rxc1 $17 35. Rxc1 {Weighted Error Value: White=0.77/Black=0.18 (very precise)} 1/2-1/2

[Event "Benidorm Open-A 2022"]
[Site "Benidorm"]
[Date "2022.12.06"]
[Round "5.3"]
[White "Mannion, Stephen R"]
[Black "Ajay Karthikeyan"]
[Result "0-1"]
[ECO "C53"]
[WhiteElo "2227"]
[BlackElo "2441"]
[Annotator "TA"]
[PlyCount "66"]
[EventDate "2022.12.03"]
[EventType "swiss"]
[EventCountry "ESP"]
[SourceTitle "playchess.com"]
[Source "ChessBase"]
[SourceQuality "1"]
[TimeControl "5400+30"]

{[%evp 17,66,0,1,0,0,0,0,0,0,0,0,0,0,-143,-150,-187,-205,-281,-116,-129,-108,-135,-122,-129,-130,-209,-215,-447,-257,-237,-285,-239,-271,-676,-660,-1169,-1059,-1302,-1299,-1254,-1126,-11722,-1645,-1610,-1692,-1433,-1312,-29972,-29972,-29979,-29968]} 1. e4 e5 2. Nf3 Nc6 3. Bc4 Bc5 4. c3 Nf6 5. d4 exd4 6. e5 d5 7. Bb5 Ne4 8. cxd4 Bb6 9. Nc3 O-O 10. Be3 {C54: Giuoco Piano: 4 c3 Nf6, main lines with 5 d4 and 5 d3.} Bg4 11. h3 Bh5 12. Qc2 {The position is equal.} Nxc3 13. bxc3 f6 14. exf6 Qxf6 15. Bxc6 ({But not} 15. Ng5 Bg6 16. Qb3 Rad8 $15) (15. Be2 $11 {keeps the balance.}) 15... Bxf3 $17 16. Bxb7 Bxg2 17. Rg1 Rab8 ({Weaker is} 17... Bxh3 18. Bxd5+ Kh8 19. Bxa8 (19. Rh1 Bf5 $11) 19... Rxa8 20. Qe4 $16) (17... Rae8 $1 $19 {has better winning chances. Strongly threatening ...Bf3.} 18. O-O-O Be4) 18. Rxg2 Rxb7 19. O-O-O Ba5 20. Rdg1 {[#]} c6 $146 {[%cal Bc7c6,Bc6c5,Bc5d4][%mdl 32]} ({Predecessor:} 20... c5 21. Bg5 Qc6 22. Be3 c4 23. h4 Qf6 24. h5 Rfb8 25. h6 Rb1+ 26. Qxb1 Rxb1+ 27. Kxb1 {1-0 (46) Braun,J (1436)-Neuhoff,L (1847) Willingen 2021}) 21. Rg5 {[#]} (21. Rg4 $17 {keeps fighting.}) 21... Rfb8 $1 $19 22. Rh5 $2 (22. f4) 22... Rb1+ (22... g6 $142 {[%cal Oa5c3] And now ...Bxc3! would win.} 23. h4 Qf8 24. Rxg6+ hxg6 25. Qxg6+ Rg7 26. Qe6+ Qf7) 23. Qxb1 Rxb1+ 24. Kxb1 Bxc3 25. Re5 $2 (25. Rhg5 g6 26. Rd1) 25... c5 {Hoping for ...Qb6+.} 26. Re8+ Kf7 27. Rb8 {Against Qb6+} cxd4 28. Rb7+ Ke6 29. Bg5 Qf5+ (29... Qxf2 $142 30. Rc1 Qf5+ 31. Rc2 Qxg5) 30. Kc1 Qxf2 {( -> ...d3)} 31. Rd1 {Against d3} Qxa2 32. Rb1 h6 33. Bh4 Qc4 {Weighted Error Value: White=1.38/Black=0.54} 0-1

[Event "Benidorm Open-A 2022"]
[Site "Benidorm"]
[Date "2022.12.06"]
[Round "5.5"]
[White "Lohia, Sohum"]
[Black "Van Foreest, Machteld"]
[Result "0-1"]
[ECO "B33"]
[WhiteElo "2136"]
[BlackElo "2206"]
[Annotator "TA"]
[PlyCount "64"]
[EventDate "2022.12.03"]
[EventType "swiss"]
[EventCountry "ESP"]
[SourceTitle "playchess.com"]
[Source "ChessBase"]
[SourceQuality "1"]
[TimeControl "5400+30"]

{[%evp 12,64,41,30,18,17,33,22,17,23,54,28,39,22,37,34,39,40,37,37,39,29,53,28,45,24,23,14,17,-89,-63,-100,-116,-104,-95,-122,-118,-117,-109,-105,-109,-218,-238,-204,-178,-308,-271,-278,-270,-457,-433,-625,-600,-647,-622]} 1. e4 c5 2. Nf3 e6 3. d4 cxd4 4. Nxd4 Nf6 5. Nc3 Nc6 6. Ndb5 Bc5 7. Bf4 {The main line 7.Bf4 scores better than 7.Nd6+.} (7. Nd6+ {keeps more tension.} Ke7 8. Bf4 e5 9. Nf5+) 7... O-O {B45: Sicilian Four Knights.} 8. Bc7 {Against d5} Qe7 {Threatens to win with ...d5.} 9. Bd6 $1 {Prevents d5.} Bxd6 {The position is equal.} 10. Qxd6 Qd8 (10... Ne8 {simplifies} 11. Qxe7 Nxe7 12. Nd4 a6) 11. O-O-O a6 12. Nd4 Ne7 13. h4 {[%cal Bh2h4,Bh4h5,Bh5h6][%mdl 32]} b5 14. a3 Bb7 15. f3 Ne8 {[#]} 16. Qh2 $146 ({Predecessor:} 16. Qf4 Rc8 17. g4 Qb6 18. Qd2 d5 19. e5 Nc6 20. f4 b4 21. Na4 Qa5 22. Nxc6 Bxc6 {1-0 (55) Eljanov,P (2672)-Safin,R (2283) Chess.com INT 2021}) 16... Rc8 17. h5 Qb6 18. h6 {aiming for hxg7.} g6 19. Qg1 {[%cal Od4f5]} Qc7 20. Qe3 {[#]} (20. Bd3 $11) 20... e5 $1 $17 21. Nde2 d5 22. exd5 {[#]} Nxd5 {[%mdl 576]} 23. Qf2 {[#]} (23. Qg5 f5) 23... a5 $1 {[%cal Ob5b4,Ba6a5,Ba5b4][%mdl 32] White must now prevent ...b4!} 24. Rd2 {[#] Against b4} b4 $1 25. Nxd5 Bxd5 26. axb4 (26. Qe3 $17 {is a better defense.}) 26... axb4 $19 {[%cal Oe8d6] ...Nd6! is the strong threat.} 27. Kd1 Nf6 28. Nc1 (28. Rh4 $142) 28... Rfd8 {[%cal Oc7c2] ( -> ...Qxc2+!)} 29. Bd3 e4 30. fxe4 (30. Qd4 {was worth a try.} Rd6 31. fxe4 (31. Bxe4 $2 {is the wrong capture.} Rcd8 $19) 31... Bxe4 32. Qxd6 Qxd6 33. Bxe4) 30... Nxe4 {Black is clearly winning.} 31. Qd4 (31. Bxe4 $142 Bxe4 32. Ke1 Rxd2 33. Qxd2) 31... f5 (31... Nxd2 $2 32. Qg7#) 32. Bxe4 Bxe4 {Weighted Error Value: White=0.40/Black=0.04 (flawless)} 0-1

[Event "Benidorm Open-A 2022"]
[Site "Benidorm"]
[Date "2022.12.06"]
[Round "5.7"]
[White "Vignesh B"]
[Black "Chernikov, Vladimir"]
[Result "1/2-1/2"]
[ECO "A06"]
[WhiteElo "2032"]
[BlackElo "2247"]
[Annotator "TA"]
[PlyCount "80"]
[EventDate "2022.12.03"]
[EventType "swiss"]
[EventCountry "ESP"]
[SourceTitle "playchess.com"]
[Source "ChessBase"]
[SourceQuality "1"]
[TimeControl "5400+30"]

{[%evp 10,80,-35,-8,-8,-32,-35,-18,0,-23,0,0,0,0,7,0,0,-18,-24,-62,-38,-45,19,-27,0,0,25,44,48,60,242,63,85,72,78,38,22,18,142,145,151,48,60,0,0,0,0,-46,0,-5,0,0,130,127,115,118,212,205,164,28,30,29,277,0,0,0,0,0,0,0,0,0,0]} 1. Nf3 d5 2. b3 c5 3. Bb2 f6 4. e3 e5 {[%cal Be7e5,Be5e4][%mdl 32]} 5. d4 cxd4 6. exd4 e4 {A06: Réti Opening: 1 Nf3 d5.} 7. Nfd2 (7. Nh4 $5 {[%cal Rd1h5]}) 7... f5 8. c4 Nf6 9. Nc3 Be6 10. cxd5 Nxd5 11. Bc4 {[%cal Od2e4]} Bb4 12. Nxd5 Bxd5 13. a3 Be7 {[#]} 14. Nf1 $146 ({Predecessor:} 14. Qh5+ g6 15. Qh6 Nc6 16. Qg7 Bf6 17. Qxb7 Rb8 18. Qa6 Rb6 19. Qa4 e3 20. fxe3 Bxg2 {0-1 (31) Sharan,R (2033)-Lazic,M (2328) Novi Sad 2021}) 14... O-O 15. Ne3 Bf7 ({Black should try} 15... Bxc4 $15 16. bxc4 Nd7) 16. f4 (16. Nxf5 $2 Qa5+ 17. Qd2 Qxf5 $19) (16. O-O {feels stronger.}) 16... Bf6 17. Qd2 (17. Nxf5 $2 Qa5+ 18. Qd2 Qxf5 $19) 17... Qd7 18. d5 {Hoping for Bxf6.} Bxb2 19. Qxb2 b5 $2 {[#]} (19... Bg6 $14) 20. Be2 $2 ({White must play} 20. Bxb5 $1 $18 {[%mdl 512]} Qb7 21. Nxf5 (21. Bc4 Be8 $16)) 20... g6 (20... Bxd5 $2 21. Rd1 $18) 21. g4 {White is more active.} Qd6 (21... Bxd5 $2 22. Rd1 Qe7 23. Rxd5 $18) 22. Rf1 Qb6 23. Qd2 {Black must now prevent Rc1.} ({Much worse is} 23. Qc3 Nd7 24. gxf5 Rac8 $15) 23... Qf6 (23... Nd7 $11) 24. Rc1 $16 Nd7 25. g5 (25. Bxb5 $16 Nb6 26. gxf5) 25... Qd6 $14 26. Rc6 {Inhibits Nc5.} (26. Bxb5 Nc5 27. Rc3 Rab8 $11) (26. b4 $1 $14) 26... Qxa3 $11 27. Kf2 Nb6 28. h4 (28. b4 $11 {was preferrable.}) 28... Qxb3 {[%cal Rb6d5]} (28... Be8 $5 {[%cal Re8c6]} 29. Rc2 Qd6 $15) 29. h5 {Strongly threatening Qd4.} Rad8 {[%cal Rb6d5]} (29... Bxd5 30. hxg6 hxg6 31. Rxg6+ Kf7 32. Rh6 $18) (29... gxh5 30. Qd4 Be8 31. Rc7 $18) 30. hxg6 Bxg6 (30... hxg6 $11 {keeps the balance.} 31. Rd1 Nxd5 32. Nxd5 Rxd5 33. Rxg6+ Bxg6 34. Qxd5+ Qxd5 35. Rxd5 a6) 31. d6 $1 $16 Be8 32. Rc7 {[%cal Oc7h7] And now Rxh7! would win.} Qe6 (32... Rf7 $16 33. Rc5 Qa3) 33. Rd1 $1 $40 {[%cal Oc7e7][%mdl 128] Re7! is the strong threat. White is out for blood. Dancing on a razor blade.} Rf7 {Inhibits Re7. aiming for ...Rxc7.} 34. Rxf7 (34. Rc5 $18) 34... Qxf7 $11 35. Qa5 Qe6 $2 {[#]} (35... Ra8 $11) 36. Bxb5 $2 ({White has to play} 36. Nd5 $1 $18 {[%cal Rd5f6][%mdl 512]}) 36... Bxb5 {The position is equal.} 37. Qxb5 Rxd6 38. Rxd6 Qxd6 39. Qe8+ (39. Nxf5 $2 {is the wrong capture.} Qxf4+ 40. Kg2 Qxg5+ 41. Kh1 Qc1+ 42. Kg2 Qd2+ 43. Kg1 Qg5+ 44. Kh1 Qc1+ 45. Kh2 Qc2+ 46. Kg1 Qd1+ 47. Kg2 Qd2+ 48. Kh1 Qc1+ $19) 39... Qf8 40. Qe5 Nd7 {Weighted Error Value: White=0.33/Black=0.43} 1/2-1/2

[Event "Benidorm Open-A 2022"]
[Site "Benidorm"]
[Date "2022.12.06"]
[Round "5.8"]
[White "Christiansen, Johan-Sebastian"]
[Black "Goossens, Hanne"]
[Result "1-0"]
[ECO "C53"]
[WhiteElo "2582"]
[BlackElo "2200"]
[Annotator "TA"]
[PlyCount "64"]
[EventDate "2022.12.03"]
[EventType "swiss"]
[EventCountry "ESP"]
[SourceTitle "playchess.com"]
[Source "ChessBase"]
[SourceQuality "1"]
[TimeControl "5400+30"]

{[%evp 13,64,12,15,17,20,23,48,28,31,0,0,0,0,0,0,0,18,21,43,26,0,0,0,0,0,11,0,-68,-69,-77,-73,-79,-89,-91,-88,-102,-65,-199,-197,-184,-185,-158,-11,-16,-21,-110,0,0,0,0,0,-46,-73]} 1. e4 e5 2. Bc4 Nf6 3. d3 Nc6 4. Nf3 Bc5 5. c3 d6 6. a4 a5 7. O-O O-O 8. Bg5 {8.Bg5 has become a bit dusty these days. C54: Giuoco Piano: 4 c3 Nf6, main lines with 5 d4 and 5 d3.} h6 9. Bh4 Ba7 10. Nbd2 {White is slightly better.} (10. Na3 $5) 10... Kh8 {[#]} 11. Re1 $146 ({Predecessor:} 11. Bg3 g5 12. Kh1 Rb8 13. h3 Ng8 14. Qe2 f5 15. exf5 Bxf5 16. Rae1 Qd7 17. Nh2 Nf6 18. Ne4 {½-½ (18) Osipov,A (2100)-Nemec,Z (2357) LSS email 2016}) 11... g5 12. Bg3 Nh7 13. Nf1 h5 14. h4 $1 Bg4 (14... g4 $5 {[%cal Rg4f3]} 15. N3d2 f5 16. exf5 Bxf5 $11) 15. N1h2 {Strongly threatening hxg5.} Bxf3 16. Nxf3 g4 17. Nd2 Ne7 $1 {White must now prevent ...f5.} 18. d4 $1 Ng6 19. dxe5 dxe5 {Hoping for ...Qf6.} 20. Nf1 (20. Bb3 $11) 20... Qf6 $15 21. Ne3 Nxh4 22. Bxh4 Qxh4 23. g3 Qf6 {[#] And now ...Ng5 would win.} (23... Qh3 $2 24. Bf1 Rad8 25. Qc1 $18) 24. Nf5 Ng5 {[%cal Bh7g5,Bg5f3,Bf3e1][%mdl 32]} 25. Qe2 ({Better is} 25. Kg2 $1 $15) 25... Nf3+ $19 26. Kg2 Nxe1+ 27. Rxe1 Rg8 (27... Rad8 $17 {aiming for ...Rd7.} 28. Rh1 Qg5) 28. Rh1 $11 Rg5 29. f3 {[#]} (29. Rd1 $1 $11) 29... gxf3+ ({Black should try} 29... Rd8 $1 $17 {Threatens to win with ...gxf3+.} 30. fxg4 Rd7 31. Rxh5+ Rxh5 32. gxh5 Qg5) 30. Qxf3 Qg6 31. Ne7 {[%csl LRf7,LRg6]} Qh6 32. Bxf7 (32. Nf5 $11 {should be considered.} Qh7 33. Rd1) 32... Rd8 {[%mdl 32768] Weighted Error Value: White=0.18 (very precise) /Black=0.15 (very precise) . Loss on time!?} 1-0

[Event "Benidorm Open-A 2022"]
[Site "Benidorm"]
[Date "2022.12.06"]
[Round "5.9"]
[White "Van Delft, Merijn"]
[Black "Hiren K G"]
[Result "1-0"]
[ECO "B97"]
[WhiteElo "2367"]
[BlackElo "1965"]
[Annotator "TA"]
[PlyCount "97"]
[EventDate "2022.12.03"]
[EventType "swiss"]
[EventCountry "ESP"]
[SourceTitle "playchess.com"]
[Source "ChessBase"]
[SourceQuality "1"]
[TimeControl "5400+30"]

{[%evp 21,97,65,55,47,91,86,91,91,106,83,155,91,98,69,77,71,91,0,19,-8,-12,-15,0,0,0,3,51,42,47,50,44,11,26,15,69,-22,121,131,128,117,168,177,170,172,223,228,235,235,254,226,270,252,299,302,288,285,307,295,460,362,642,618,616,608,593,595,632,644,715,587,620,620,5394,5106,29990,29991,29991,29979]} 1. e4 c5 2. Nf3 d6 3. d4 cxd4 4. Nxd4 Nf6 5. Nc3 a6 6. Bg5 e6 7. f4 Qb6 8. Nb3 h6 9. Bxf6 gxf6 10. Qf3 Nc6 11. O-O-O Bd7 12. Kb1 {B97: Sicilian Najdorf: Poisoned Pawn.} O-O-O {[#]} 13. Qh5 $1 Be7 14. g3 {White is better.} (14. Qxf7 $6 h5 $11) 14... Kb8 15. Bh3 {[#]} Qc7 $146 ({Black should try} 15... Be8) ({Predecessor:} 15... Rc8 16. Nd5 Qd8 17. Nxe7 Qxe7 18. Rd2 Rcd8 19. Rhd1 Bc8 20. a3 b6 21. Rd3 Bb7 {1-0 (58) Zuse,P (2270)-Niedermaier,H (2305) Germany 1990}) 16. Rhe1 (16. Qxf7 $142 {[%cal Ob3d4]} Rdf8 17. Qh5) 16... Bc8 17. f5 {White has more active pieces.} (17. Qxf7 $6 h5 18. Nd5 (18. Bxe6 $2 Rdf8 $19) 18... exd5 19. Bxc8 Rhf8 $11) 17... Rdg8 (17... Ne5 18. fxe6 fxe6 19. Nd4 $16) 18. Ne2 {aiming for Nf4.} (18. Qxf7 Rg5 19. e5 (19. fxe6 Ne5 $17) 19... dxe5 20. fxe6 Nd8 21. Rxd8 Bxd8 $17) 18... Rg5 19. Qh4 (19. Qxf7 $2 Ne5 $19) (19. Qf3 $16) 19... Ne5 (19... Nb4 20. c3 Nc6 21. Nf4 $16) 20. Ned4 {Prevents Nf3.} h5 $1 (20... Qc4 21. Re3 $14) 21. Qf4 {[%cal Rf5e6]} (21. fxe6 $2 Ng6 $19) 21... Ng4 {[#] ...e5 is the strong threat.} 22. Qd2 Rgg8 23. Qe2 e5 (23... Bd7 $11) 24. Nf3 $14 Bd7 25. Bf1 Qb6 {[%cal Od6d5]} 26. Rd2 {Inhibits d5.} Rc8 27. Nh4 a5 (27... Bf8 $11) 28. c4 (28. Nc1 $14) 28... Qb4 (28... d5 $11 29. h3 (29. cxd5 Bb4 $17) (29. Rxd5 Bc6 $15) (29. exd5 a4 $17) 29... a4) 29. Na1 $16 {White now steadily converts the win.} Bc6 {[%cal Oc6e4] Strongly threatening ...Bxe4+!} (29... Rxc4 $2 30. a3 $18) 30. a3 Qb6 (30... Bxe4+ $2 31. Ka2 Qb6 32. Qxe4 $18) (30... Qc5 $16 {was necessary.} 31. h3 Nh6) 31. h3 $18 Nh6 32. Qxh5 a4 (32... Ba4 {was called for.}) 33. Qf3 Qa5 34. Red1 Bd8 35. Rxd6 Be7 36. R6d2 b6 37. Nc2 Qa8 38. Bg2 Bc5 39. Nb4 Bd4 (39... Qb7 $142 40. Nd5 Rhd8) 40. Qe2 Ng8 $2 (40... Bc5 41. Nd5 Ng8) 41. Rxd4 exd4 42. Nxc6+ Qxc6 43. e5 Qc7 44. Qe4 {[%csl Gg2][%cal Re4a8]} Ka7 {Against Qa8+} 45. Nf3 fxe5 46. Nxe5 Rh6 47. Rxd4 {White threatens Rd7 and mate.} Ka6 48. Rd7 Qb8 49. Qb7+ {Weighted Error Value: White=0.21 (precise) /Black=0.48} 1-0

[Event "Benidorm Open-A 2022"]
[Site "Benidorm"]
[Date "2022.12.06"]
[Round "5.10"]
[White "Ibanez Aullana, Ramon"]
[Black "Gavarrete, Nahun"]
[Result "1/2-1/2"]
[ECO "E69"]
[WhiteElo "2270"]
[BlackElo "2308"]
[Annotator "TA"]
[PlyCount "48"]
[EventDate "2022.12.03"]
[EventType "swiss"]
[EventCountry "ESP"]
[SourceTitle "playchess.com"]
[Source "ChessBase"]
[SourceQuality "1"]
[TimeControl "5400+30"]

{[%evp 29,48,59,60,30,38,35,39,50,50,22,0,0,54,0,15,0,60,0,13,0,40]} 1. d4 Nf6 2. Nf3 g6 3. g3 Bg7 4. Bg2 O-O 5. O-O d6 6. c4 Nbd7 7. Nc3 e5 8. e4 c6 9. h3 Qb6 10. b3 exd4 11. Na4 Qc7 12. Nxd4 Re8 13. Re1 Nc5 14. Nc3 a5 15. Bf4 Qb6 {[%cal Of6e4]} 16. Be3 {[#] E69: King's Indian: Fianchetto: 6...Nbd7 7 0-0 e5 8 e4 c6 9 h3.} (16. Bxd6 $5 Nfd7 17. Rc1 $16) 16... a4 $146 (16... Ncxe4 $2 17. Nxe4 (17. Nf5 Nxc3 18. Bxb6 Nxd1 $15) 17... Nxe4 18. Nf5 $1 $18 {[%mdl 512]}) ({Predecessor:} 16... Nfd7 17. Rb1 Ne5 18. Re2 Qc7 19. Rd2 Qe7 20. f4 Ned7 21. Bf2 h5 22. Qf3 Nf6 23. Re1 Qf8 24. Nc2 Nh7 {0-1 (44) Maiorov,N (2554)-Vovk,A (2549) Livigno 2012}) 17. Rb1 axb3 (17... Ncxe4 $2 18. Nxe4 Nxe4 19. Nf5 $1 $18 {[%mdl 512]} (19. bxa4 Qa6 $17)) 18. axb3 {And now b4 would win. White is slightly better.} Qb4 (18... Nfxe4 $2 19. Nxe4 Nxe4 20. Nf5 $1 Bxf5 21. Bxb6 $18) 19. Bd2 {[%cal Oc3b5] Ncb5! is the strong threat.} Qb6 {Inhibits Ncb5.} 20. Be3 (20. Bc1 $11) 20... Qb4 $1 $14 (20... Nfxe4 $2 21. Nxe4 Nxe4 22. Nf5 $1 Bxf5 23. Bxb6 $18) 21. Bd2 {[%cal Oc3b5]} Qb6 {[%cal Of6e4] Against Ncb5} 22. Be3 {Black must now prevent b4.} Qb4 (22... Nfxe4 $2 23. Nxe4 Nxe4 24. Nf5 $1 $18) 23. Bd2 (23. Nce2 $14 {feels stronger.} Na6 24. Nc2) 23... Qb6 $1 $11 24. Be3 {aiming for b4.} Qb4 {Weighted Error Value: White=0.24 (precise) /Black=0.00 (flawless)} (24... Nfxe4 $2 25. Nxe4 Nxe4 {[#]} 26. Nf5 $1 Bxf5 27. Bxb6 $18) 1/2-1/2